[Event "Paracin Open 2020"]
[Site "Paracin"]
[Date "2020.07.07"]
[Round "6.14"]
[White "Mitev, Valentin"]
[Black "Katic, Goran"]
[Result "1-0"]
[ECO "B06"]
[WhiteElo "2240"]
[BlackElo "1967"]
[Annotator "ChessBase"]
[PlyCount "43"]
[EventDate "2020.07.03"]
[EventType "swiss"]
[EventCountry "SRB"]
[SourceTitle "playchess.com"]
[Source "ChessBase"]
[SourceQuality "1"]
[TimeControl "5400+30"]

1. d4 {[%emt 0:00:00]} g6 {[%emt 0:05:41]} 2. e4 {[%emt 0:00:00]} Bg7 {[%emt 0:00:09]} 3. Nc3 {[%emt 0:00:00]} a6 {[%emt 0:00:08]} 4. f4 {[%emt 0:00:00]} d5 {[%emt 0:03:16]} 5. Nxd5 {[%emt 0:02:53]} e6 {[%emt 0:01:03]} 6. Nc3 {[%emt 0:00:12]} Bxd4 {[%emt 0:02:07]} 7. Nge2 {[%emt 0:00:32]} Bxc3+ {[%emt 0:08:57]} 8. Nxc3 {[%emt 0:00:05]} Qxd1+ {[%emt 0:00:07]} 9. Nxd1 {[%emt 0:00:03]} Ne7 {[%emt 0:00:10]} 10. b3 {[%emt 0:09:00]} Nd7 {[%emt 0:10:13]} 11. Bb2 {[%emt 0:02:15]} f6 {[%emt 0:00:35]} 12. g4 {[%emt 0:05:29]} Rf8 {[%emt 0:11:36]} 13. Be2 {[%emt 0:05:21]} Nc6 {[%emt 0:05:54]} 14. Ne3 {[%emt 0:00:56]} g5 {[%emt 0:03:19]} 15. f5 {[%emt 0:01:54]} Nde5 {[%emt 0:01:30]} 16. h4 {[%emt 0:02:09]} h6 {[%emt 0:04:52]} 17. hxg5 {[%emt 0:00:36]} hxg5 {[%emt 0:00:02]} 18. Ba3 {[%emt 0:02:17]} Rg8 {[%emt 0:01:45]} 19. Rh7 {[%emt 0:00:16]} Nf7 {[%emt 0:09:57]} 20. Bc4 {[%emt 0:02:29]} Ncd8 {[%emt 0:00:26]} 21. O-O-O {[%emt 0:00:42]} c6 {[%emt 0:02:56]} 22. Rxd8+ {[%emt 0:00:42]} 1-0

[Event "Paracin Open 2020"]
[Site "Paracin"]
[Date "2020.07.07"]
[Round "6.15"]
[White "Sahin, Ozgun"]
[Black "Radojkovic, Stefan"]
[Result "1-0"]
[ECO "B81"]
[WhiteElo "2220"]
[BlackElo "1898"]
[Annotator "ChessBase"]
[PlyCount "82"]
[EventDate "2020.07.03"]
[EventType "swiss"]
[EventCountry "SRB"]
[SourceTitle "playchess.com"]
[Source "ChessBase"]
[SourceQuality "1"]
[TimeControl "5400+30"]

1. e4 {[%emt 0:00:00]} c5 {[%emt 0:00:00]} 2. Nf3 {[%emt 0:00:07]} e6 {[%emt 0:00:31]} 3. d4 {[%emt 0:01:43]} cxd4 {[%emt 0:00:26]} 4. Nxd4 {[%emt 0:00:06]} Nf6 {[%emt 0:00:43]} 5. Nc3 {[%emt 0:00:54]} d6 {[%emt 0:00:47]} 6. g4 {[%emt 0:00:35]} a6 {[%emt 0:01:00]} 7. g5 {[%emt 0:01:21]} Nfd7 {[%emt 0:00:36]} 8. h4 {[%emt 0:00:25]} b5 {[%emt 0:02:09]} 9. a3 {[%emt 0:01:09]} Bb7 {[%emt 0:02:15]} 10. Be3 {[%emt 0:01:23]} Nc6 {[%emt 0:02:35]} 11. h5 {[%emt 0:00:28]} Nxd4 {[%emt 0:06:22]} 12. Qxd4 {[%emt 0:00:41]} Ne5 {[%emt 0:00:25]} 13. Be2 {[%emt 0:00:40]} Rc8 {[%emt 0:00:53]} 14. O-O-O {[%emt 0:00:28]} Qa5 {[%emt 0:06:29]} 15. h6 {[%emt 0:09:55]} Rxc3 {[%emt 0:09:32]} 16. Qxc3 {[%emt 0:00:35]} Qxc3 {[%emt 0:00:08]} 17. bxc3 {[%emt 0:00:03]} Bxe4 {[%emt 0:00:15]} 18. Rh4 {[%emt 0:02:31]} Bd5 {[%emt 0:01:46]} 19. a4 {[%emt 0:13:48]} Bc4 {[%emt 0:05:39]} 20. Bxc4 {[%emt 0:07:22]} Nxc4 {[%emt 0:01:13]} 21. Rxc4 {[%emt 0:09:30]} bxc4 {[%emt 0:00:06]} 22. hxg7 {[%emt 0:00:02]} Bxg7 {[%emt 0:00:13]} 23. Rxd6 {[%emt 0:00:04]} a5 {[%emt 0:05:27]} 24. Rc6 {[%emt 0:03:17]} O-O {[%emt 0:04:21]} 25. Rxc4 {[%emt 0:00:09]} f6 {[%emt 0:00:07]} 26. Rc5 {[%emt 0:05:22]} fxg5 {[%emt 0:01:15]} 27. Rxg5 {[%emt 0:00:09]} Rf5 {[%emt 0:01:27]} 28. Rxf5 {[%emt 0:01:49]} exf5 {[%emt 0:00:01]} 29. Kd2 {[%emt 0:02:16]} h5 {[%emt 0:01:22]} 30. Bb6 {[%emt 0:00:17]} Kf7 {[%emt 0:00:57]} 31. Bxa5 {[%emt 0:00:11]} Ke6 {[%emt 0:00:06]} 32. Bd8 {[%emt 0:01:38]} Kd7 {[%emt 0:00:34]} 33. Bg5 {[%emt 0:01:47]} Kc6 {[%emt 0:00:22]} 34. Kd3 {[%emt 0:04:16]} Bf8 {[%emt 0:02:06]} 35. f3 {[%emt 0:06:54]} Bd6 {[%emt 0:03:51]} 36. Bh4 {[%emt 0:02:35]} Kd5 {[%emt 0:05:05]} 37. c4+ {[%emt 0:01:45]} Kc5 {[%emt 0:01:44]} 38. a5 {[%emt 0:02:46]} Bh2 {[%emt 0:01:46]} 39. Bf2+ {[%emt 0:00:37]} Kc6 {[%emt 0:00:11]} 40. a6 {[%emt 0:01:33]} f4 {[%emt 0:00:47]} 41. c5 {[%emt 0:01:13]} Kd5 1-0

[Event "Paracin Open 2020"]
[Site "Paracin"]
[Date "2020.07.07"]
[Round "6.16"]
[White "Djokic, Slavoljub"]
[Black "Radisavljevic, Dalibor"]
[Result "1/2-1/2"]
[ECO "A16"]
[WhiteElo "2077"]
[BlackElo "2214"]
[Annotator "ChessBase"]
[PlyCount "115"]
[EventDate "2020.07.03"]
[EventType "swiss"]
[EventCountry "SRB"]
[SourceTitle "playchess.com"]
[Source "ChessBase"]
[SourceQuality "1"]
[TimeControl "5400+30"]

1. c4 {[%emt 0:00:01]} Nf6 {[%emt 0:00:00]} 2. Nc3 {[%emt 0:00:08]} g6 {[%emt 0:00:00]} 3. Nf3 {[%emt 0:00:19]} Bg7 {[%emt 0:00:00]} 4. g3 {[%emt 0:00:14]} O-O {[%emt 0:00:00]} 5. Bg2 {[%emt 0:00:01]} d6 {[%emt 0:00:06]} 6. O-O {[%emt 0:00:03]} e5 {[%emt 0:00:14]} 7. d4 {[%emt 0:01:15]} Nbd7 {[%emt 0:00:10]} 8. dxe5 {[%emt 0:00:06]} dxe5 {[%emt 0:00:10]} 9. Bg5 {[%emt 0:00:07]} h6 {[%emt 0:04:58]} 10. Bxf6 {[%emt 0:00:55]} Bxf6 {[%emt 0:00:07]} 11. Qd2 {[%emt 0:00:44]} Bg7 {[%emt 0:01:07]} 12. Rad1 {[%emt 0:00:13]} c6 {[%emt 0:05:56]} 13. Ne4 {[%emt 0:00:07]} Qc7 {[%emt 0:14:56]} 14. Nd6 {[%emt 0:02:17]} Rd8 {[%emt 0:37:29]} 15. Nxc8 {[%emt 0:05:34]} Raxc8 {[%emt 0:00:35]} 16. Qc2 {[%emt 0:00:06]} Nf8 {[%emt 0:04:45]} 17. Bh3 {[%emt 0:04:16]} Rxd1 {[%emt 0:01:26]} 18. Rxd1 {[%emt 0:01:54]} Rd8 {[%emt 0:00:02]} 19. e4 {[%emt 0:00:17]} Nh7 {[%emt 0:05:44]} 20. b4 {[%emt 0:04:32]} Ng5 {[%emt 0:08:08]} 21. Nxg5 {[%emt 0:00:38]} hxg5 {[%emt 0:00:01]} 22. a3 {[%emt 0:00:27]} Bf8 {[%emt 0:04:10]} 23. c5 {[%emt 0:01:23]} a5 {[%emt 0:02:10]} 24. Bf1 {[%emt 0:00:13]} axb4 {[%emt 0:01:28]} 25. axb4 {[%emt 0:00:01]} Rxd1 {[%emt 0:00:57]} 26. Qxd1 {[%emt 0:00:01]} b6 {[%emt 0:01:02]} 27. cxb6 {[%emt 0:03:37]} Qxb6 {[%emt 0:00:36]} 28. Qd7 {[%emt 0:00:01]} Qxb4 {[%emt 0:04:10]} 29. Qxc6 {[%emt 0:00:02]} Kg7 {[%emt 0:00:30]} 30. Qd5 {[%emt 0:05:43]} Qe7 {[%emt 0:00:40]} 31. Bc4 {[%emt 0:00:16]} Qf6 {[%emt 0:00:10]} 32. Kg2 {[%emt 0:00:40]} Bb4 {[%emt 0:00:21]} 33. f3 {[%emt 0:04:23]} Bc3 {[%emt 0:00:21]} 34. Qd7 {[%emt 0:00:45]} Bd4 {[%emt 0:01:11]} 35. Bd5 {[%emt 0:01:58]} Be3 {[%emt 0:02:38]} 36. Bc4 {[%emt 0:02:07]} g4 {[%emt 0:00:56]} 37. Qxg4 {[%emt 0:00:30]} Qc6 {[%emt 0:00:07]} 38. Bf1 {[%emt 0:01:44]} Qc1 {[%emt 0:01:03]} 39. Qd7 {[%emt 0:07:34]} Qe1 {[%emt 0:00:27]} 40. Qb5 {[%emt 0:00:09]} Qf2+ {[%emt 0:00:31]} 41. Kh3 {[%emt 0:00:01]} Bd4 {[%emt 0:00:29]} 42. Qd3 {[%emt 0:00:42]} Qb2 {[%emt 0:00:30]} 43. Be2 {[%emt 0:00:53]} Qb6 {[%emt 0:00:19]} 44. f4 {[%emt 0:01:43]} exf4 {[%emt 0:00:45]} 45. gxf4 {[%emt 0:00:09]} Qc5 {[%emt 0:00:17]} 46. Qf3 {[%emt 0:01:57]} Qc3 {[%emt 0:00:28]} 47. Bd3 {[%emt 0:00:13]} Qd2 {[%emt 0:00:07]} 48. Bb1 {[%emt 0:04:30]} Qc3 {[%emt 0:01:05]} 49. Qg3 {[%emt 0:00:17]} Qxg3+ {[%emt 0:00:27]} 50. hxg3 {[%emt 0:00:00]} f6 {[%emt 0:00:00]} 51. Kg4 {[%emt 0:00:47]} Bb2 {[%emt 0:00:00]} 52. Kf3 {[%emt 0:00:22]} g5 {[%emt 0:00:13]} 53. Kg4 {[%emt 0:00:18]} gxf4 {[%emt 0:00:05]} 54. gxf4 {[%emt 0:00:08]} Bc3 {[%emt 0:00:05]} 55. Kf5 {[%emt 0:00:13]} Bb2 {[%emt 0:00:04]} 56. e5 {[%emt 0:00:23]} fxe5 {[%emt 0:00:05]} 57. fxe5 {[%emt 0:00:10]} Bxe5 {[%emt 0:00:03]} 58. Kxe5 {[%emt 0:00:08]} 1/2-1/2

[Event "Paracin Open 2020"]
[Site "Paracin"]
[Date "2020.07.08"]
[Round "7.1"]
[White "Basso, Pier Luigi"]
[Black "Ratkovic, Milovan"]
[Result "1-0"]
[ECO "D21"]
[WhiteElo "2596"]
[BlackElo "2435"]
[Annotator "RC"]
[PlyCount "189"]
[EventDate "2020.07.03"]
[EventType "swiss"]
[EventCountry "SRB"]
[SourceTitle "playchess.com"]
[Source "ChessBase"]
[SourceQuality "1"]
[TimeControl "5400+30"]

1. d4 {[%emt 0:01:14]} d5 {[%emt 0:00:31]} 2. c4 {[%emt 0:01:23]} dxc4 {[%emt 0:00:12]} 3. Nf3 {[%emt 0:00:07]} a6 {[%emt 0:00:13]} 4. e3 {[%emt 0:00:57]} Bg4 {[%emt 0:00:11]} 5. h3 {[%emt 0:00:22]} Bh5 {[%emt 0:00:43]} 6. Nc3 {[%emt 0:00:30]} e6 {[%emt 0:04:09]} 7. g4 {[%emt 0:00:17]} Bg6 {[%emt 0:00:07]} 8. Ne5 {[%emt 0:00:06]} Nd7 {[%emt 0:01:14]} 9. Nxg6 {[%emt 0:00:06]} hxg6 {[%emt 0:00:05]} 10. Bxc4 {[%emt 0:00:05]} Ngf6 {[%emt 0:06:39]} 11. Bf1 {[%emt 0:01:39]} c6 {[%emt 0:01:40]} 12. Bg2 {[%emt 0:00:10]} Bd6 {[%emt 0:02:24]} 13. O-O {[%emt 0:03:15]} Nd5 {[%emt 0:14:50]} 14. e4 {[%emt 0:12:15]} Nf4 {[%emt 0:07:31]} 15. Bxf4 {[%emt 0:06:14]} Bxf4 {[%emt 0:01:19]} 16. d5 {[%emt 0:10:20]} Qe7 {[%emt 0:06:27]} 17. dxc6 {[%emt 0:01:40]} bxc6 {[%emt 0:00:28]} 18. e5 {[%emt 0:00:26]} Bxe5 {[%emt 0:03:06]} 19. Bxc6 {[%emt 0:04:20]} Rd8 {[%emt 0:05:41]} 20. Qe2 {[%emt 0:07:57]} Bxc3 {[%emt 0:07:14]} 21. bxc3 {[%emt 0:00:07]} O-O {[%emt 0:01:28]} 22. Bxd7 {[%emt 0:00:40]} Rxd7 {[%emt 0:01:57]} 23. Rfd1 {[%emt 0:04:29]} Rc7 {[%emt 0:07:19]} 24. Qxa6 {[%emt 0:06:30]} Rxc3 {[%emt 0:00:14]} 25. Rd3 {[%emt 0:00:11]} Rc2 {[%emt 0:01:07]} 26. Rad1 {[%emt 0:02:36]} Qc5 {[%emt 0:08:41]} 27. Rf3 {[%emt 0:00:53]} e5 {[%emt 0:02:28]} 28. Qa3 {[%emt 0:05:43]} Qc4 {[%emt 0:08:36]} 29. Qe7 {[%emt 0:06:55]} Rc1 {[%emt 0:05:51]} 30. Rxc1 {[%emt 0:00:13]} Qxc1+ {[%emt 0:00:06]} 31. Kg2 {[%emt 0:00:10]} Qc4 {[%emt 0:01:54]} 32. a3 {[%emt 0:02:56]} e4 {[%emt 0:00:57]} 33. Re3 {[%emt 0:00:55]} f5 {[%emt 0:00:18]} 34. Qe5 {[%emt 0:03:15]} Qf7 {[%emt 0:00:37]} 35. gxf5 {[%emt 0:03:55]} gxf5 {[%emt 0:00:05]} 36. Qf4 {[%emt 0:00:24]} Qf6 {[%emt 0:01:03]} 37. Rg3 {[%emt 0:00:08]} Ra8 {[%emt 0:00:30]} 38. Rg5 {[%emt 0:01:13]} Rf8 {[%emt 0:00:33]} 39. h4 {[%emt 0:00:25]} Qc6 {[%emt 0:00:27]} 40. Kh2 {[%emt 0:00:44]} Qc5 {[%emt 0:00:33]} 41. a4 {[%emt 0:00:54]} Qa7 {[%emt 0:00:26]} 42. h5 {[%emt 0:01:29]} Rf6 {[%emt 0:00:07]} 43. Rg6 {[%emt 0:03:07]} Qf7 {[%emt 0:00:50]} 44. Qg5 {[%emt 0:01:02]} Re6 {[%emt 0:00:38]} 45. Rxe6 {[%emt 0:01:08]} Qxe6 {[%emt 0:00:01]} 46. h6 {[%emt 0:00:26]} Qd6+ {[%emt 0:00:16]} 47. Kg2 {[%emt 0:00:20]} g6 {[%emt 0:00:04]} 48. Qe3 {[%emt 0:02:51]} Kh7 {[%emt 0:00:35]} 49. a5 {[%emt 0:00:37]} f4 {[%emt 0:00:52]} 50. Qxe4 {[%emt 0:00:34]} Kxh6 {[%emt 0:00:05]} 51. Qf3 {[%emt 0:00:23]} Kg5 {[%emt 0:00:56]} 52. Qb7 {[%emt 0:00:31]} Qe6 {[%emt 0:01:11]} 53. Qf3 {[%emt 0:00:38]} Qd6 {[%emt 0:00:21]} 54. Qe4 {[%emt 0:00:06]} Kf6 {[%emt 0:00:30]} 55. Qb7 {[%emt 0:00:21]} Qd1 {[%emt 0:00:32]} 56. Qf3 {[%emt 0:02:10]} Qd6 {[%emt 0:00:13]} 57. Qb3 {[%emt 0:01:23]} Qc6+ {[%emt 0:00:26]} 58. Kh2 {[%emt 0:00:01]} Ke5 {[%emt 0:00:46]} 59. Qb6 {[%emt 0:01:21]} Qf3 {[%emt 0:00:30]} 60. Qc5+ {[%emt 0:00:05]} Kf6 {[%emt 0:00:32]} 61. a6 {[%emt 0:00:10]} g5 {[%emt 0:00:13]} 62. Qd4+ {[%emt 0:00:44]} Kg6 {[%emt 0:00:56]} 63. a7 {[%emt 0:00:14]} Qh5+ {[%emt 0:00:12]} 64. Kg1 {[%emt 0:00:09]} Qg4+ {[%emt 0:00:05]} 65. Kf1 {[%emt 0:00:26]} Qh3+ {[%emt 0:00:06]} 66. Ke2 {[%emt 0:00:32]} Qe6+ {[%emt 0:00:16]} 67. Kd2 {[%emt 0:01:58]} Qa2+ {[%emt 0:00:19]} 68. Kd1 {[%emt 0:00:34]} Qb1+ {[%emt 0:00:12]} 69. Ke2 {[%emt 0:00:33]} Qa2+ {[%emt 0:00:45]} 70. Kf3 {[%emt 0:00:44]} Qb3+ {[%emt 0:00:32]} 71. Kg2 {[%emt 0:00:17]} Qb7+ {[%emt 0:02:02]} 72. f3 {[%emt 0:01:24]} Kf7 {[%emt 0:00:24]} 73. Qe4 {[%emt 0:01:06]} Qb2+ {[%emt 0:00:23]} 74. Kh3 {[%emt 0:00:10]} g4+ {[%emt 0:00:24]} 75. Kxg4 {[%emt 0:00:15]} Qg2+ {[%emt 0:00:27]} 76. Kxf4 {[%emt 0:00:29]} Qh2+ {[%emt 0:00:25]} 77. Ke3 {[%emt 0:00:11]} Qg1+ {[%emt 0:00:10]} 78. Kd3 {[%emt 0:00:09]} Qb1+ {[%emt 0:00:19]} 79. Kc4 {[%emt 0:00:07]} Qa2+ {[%emt 0:00:27]} 80. Kb5 {[%emt 0:00:06]} Qb3+ {[%emt 0:00:16]} 81. Kc6 {[%emt 0:00:11]} Qc3+ {[%emt 0:01:23]} 82. Kd7 {[%emt 0:00:12]} Qd2+ {[%emt 0:00:42]} 83. Kc8 {[%emt 0:01:09]} Qc3+ {[%emt 0:00:24]} 84. Kb8 {[%emt 0:00:07]} Qh8+ {[%emt 0:00:08]} 85. Kb7 {[%emt 0:00:28]} Qb2+ {[%emt 0:00:06]} 86. Kc6 {[%emt 0:00:41]} Qc3+ {[%emt 0:00:47]} 87. Kb5 {[%emt 0:00:05]} Qb3+ {[%emt 0:00:23]} 88. Qb4 {[%emt 0:00:11]} Qd5+ {[%emt 0:01:08]} 89. Qc5 {[%emt 0:00:10]} Qb3+ {[%emt 0:00:45]} 90. Ka6 {[%emt 0:00:14]} Qa2+ {[%emt 0:00:31]} 91. Kb7 {[%emt 0:00:15]} Qb3+ {[%emt 0:00:09]} 92. Kc7 {[%emt 0:02:48]} Qxf3 {[%emt 0:00:50]} 93. Qc6 {[%emt 0:00:13]} Qg3+ {[%emt 0:00:27]} 94. Kc8 {[%emt 0:00:10]} Qg8+ {[%emt 0:00:34]} 95. Kb7 {[%emt 0:00:06]} 1-0

[Event "Paracin Open 2020"]
[Site "Paracin"]
[Date "2020.07.08"]
[Round "7.4"]
[White "Todorovic, Nenad I"]
[Black "Cabarkapa, Novak"]
[Result "1-0"]
[ECO "B01"]
[WhiteElo "2295"]
[BlackElo "2459"]
[Annotator "RC"]
[PlyCount "61"]
[EventDate "2020.07.03"]
[EventType "swiss"]
[EventCountry "SRB"]
[SourceTitle "playchess.com"]
[Source "ChessBase"]
[SourceQuality "1"]
[TimeControl "5400+30"]

1. e4 {[%emt 0:00:00]} d5 {[%emt 0:00:00]} 2. exd5 {[%emt 0:00:00]} Qxd5 {[%emt 0:00:02]} 3. Nc3 {[%emt 0:00:00]} Qd8 {[%emt 0:00:41]} 4. d4 {[%emt 0:00:46]} Nf6 {[%emt 0:00:06]} 5. Nf3 {[%emt 0:03:58]} g6 {[%emt 0:00:13]} 6. Bc4 {[%emt 0:09:57]} Bg7 {[%emt 0:00:45]} 7. O-O {[%emt 0:00:52]} O-O {[%emt 0:00:04]} 8. Re1 {[%emt 0:02:55]} a6 {[%emt 0:00:46]} 9. a4 {[%emt 0:03:30]} Nc6 {[%emt 0:01:59]} 10. h3 {[%emt 0:17:43]} b6 {[%emt 0:04:47]} 11. Bg5 {[%emt 0:09:49]} Bb7 {[%emt 0:04:51]} 12. Qd2 {[%emt 0:02:42]} e6 {[%emt 0:28:24]} 13. Rad1 {[%emt 0:03:19]} Ne7 {[%emt 0:01:58]} 14. Ne5 {[%emt 0:17:05]} Nf5 {[%emt 0:04:15]} 15. Ng4 {[%emt 0:03:02]} h5 {[%emt 0:04:17]} 16. Ne5 {[%emt 0:00:09]} Nd6 {[%emt 0:04:09]} 17. Bb3 {[%emt 0:02:45]} b5 {[%emt 0:10:18]} 18. axb5 {[%emt 0:03:15]} axb5 {[%emt 0:05:20]} 19. Qf4 {[%emt 0:00:12]} Kh7 {[%emt 0:05:45]} 20. f3 {[%emt 0:03:57]} b4 {[%emt 0:02:12]} 21. Ne4 {[%emt 0:00:32]} Bxe4 {[%emt 0:02:57]} 22. fxe4 {[%emt 0:00:15]} Nde8 {[%emt 0:00:04]} 23. d5 {[%emt 0:03:57]} exd5 {[%emt 0:01:56]} 24. Bxd5 {[%emt 0:00:18]} Nxd5 {[%emt 0:00:46]} 25. Rxd5 {[%emt 0:00:06]} Bxe5 {[%emt 0:01:09]} 26. Qxe5 {[%emt 0:00:52]} Qb8 {[%emt 0:02:39]} 27. Be7 {[%emt 0:05:22]} f6 {[%emt 0:00:29]} 28. Qe6 {[%emt 0:00:59]} Ng7 {[%emt 0:00:10]} 29. Qc6 {[%emt 0:00:35]} Rf7 {[%emt 0:01:49]} 30. Rd8 {[%emt 0:01:54]} Qa7+ {[%emt 0:00:48]} 31. Bc5 {[%emt 0:00:07]} 1-0

[Event "Paracin Open 2020"]
[Site "Paracin"]
[Date "2020.07.08"]
[Round "7.10"]
[White "Formento, Paolo"]
[Black "Durak, Can"]
[Result "1/2-1/2"]
[ECO "A06"]
[WhiteElo "2294"]
[BlackElo "1847"]
[Annotator "ChessBase"]
[PlyCount "66"]
[EventDate "2020.07.03"]
[EventType "swiss"]
[EventCountry "SRB"]
[SourceTitle "playchess.com"]
[Source "ChessBase"]
[SourceQuality "1"]
[TimeControl "5400+30"]

1. Nf3 {[%emt 0:02:14]} d5 {[%emt 0:00:20]} 2. b3 {[%emt 0:00:36]} Nf6 {[%emt 0:00:56]} 3. Bb2 {[%emt 0:00:05]} e6 {[%emt 0:01:17]} 4. e3 {[%emt 0:00:29]} Be7 {[%emt 0:01:32]} 5. d4 {[%emt 0:02:28]} O-O {[%emt 0:01:37]} 6. Bd3 {[%emt 0:00:29]} c5 {[%emt 0:00:41]} 7. O-O {[%emt 0:01:04]} b6 {[%emt 0:01:35]} 8. Ne5 {[%emt 0:00:49]} Bb7 {[%emt 0:01:15]} 9. Nd2 {[%emt 0:00:29]} Nc6 {[%emt 0:01:33]} 10. f4 {[%emt 0:00:53]} Rc8 {[%emt 0:01:57]} 11. a3 {[%emt 0:00:35]} a6 {[%emt 0:05:25]} 12. g4 {[%emt 0:22:48]} Nxe5 {[%emt 0:06:13]} 13. dxe5 {[%emt 0:01:34]} Ne8 {[%emt 0:03:15]} 14. Be2 {[%emt 0:20:18]} d4 {[%emt 0:21:05]} 15. exd4 {[%emt 0:02:29]} cxd4 {[%emt 0:00:12]} 16. Bf3 {[%emt 0:00:49]} d3 {[%emt 0:08:10]} 17. cxd3 {[%emt 0:06:08]} Bxf3 {[%emt 0:07:08]} 18. Rxf3 {[%emt 0:04:01]} f6 {[%emt 0:01:25]} 19. Ne4 {[%emt 0:02:57]} fxe5 {[%emt 0:00:32]} 20. Bxe5 {[%emt 0:00:16]} Nf6 {[%emt 0:01:20]} 21. Bxf6 {[%emt 0:12:02]} Bxf6 {[%emt 0:00:49]} 22. Ra2 {[%emt 0:01:10]} Bd4+ {[%emt 0:01:22]} 23. Kg2 {[%emt 0:00:30]} Qd5 {[%emt 0:00:24]} 24. Re2 {[%emt 0:02:03]} Rc6 {[%emt 0:02:11]} 25. Qd2 {[%emt 0:04:57]} Qxb3 {[%emt 0:05:42]} 26. Qb4 {[%emt 0:01:36]} Qxb4 {[%emt 0:00:30]} 27. axb4 {[%emt 0:00:30]} h6 {[%emt 0:00:29]} 28. Ra2 {[%emt 0:02:03]} b5 {[%emt 0:01:36]} 29. f5 {[%emt 0:02:19]} exf5 {[%emt 0:00:17]} 30. Rxf5 {[%emt 0:01:29]} Rd8 {[%emt 0:01:14]} 31. h4 {[%emt 0:00:56]} g6 {[%emt 0:02:52]} 32. Rf3 {[%emt 0:00:23]} Rdc8 {[%emt 0:01:04]} 33. Nc5 {[%emt 0:01:32]} Bxc5 {[%emt 0:01:02]} 1/2-1/2

[Event "Paracin Open 2020"]
[Site "Paracin"]
[Date "2020.07.08"]
[Round "7.11"]
[White "Van Dael, Siem"]
[Black "Kisic, Jovan"]
[Result "1/2-1/2"]
[ECO "B02"]
[WhiteElo "2293"]
[BlackElo "1860"]
[Annotator "ChessBase"]
[PlyCount "109"]
[EventDate "2020.07.03"]
[EventType "swiss"]
[EventCountry "SRB"]
[SourceTitle "playchess.com"]
[Source "ChessBase"]
[SourceQuality "1"]
[TimeControl "5400+30"]

1. e4 {[%emt 0:00:39]} Nf6 {[%emt 0:00:00]} 2. Nc3 {[%emt 0:00:56]} d5 {[%emt 0:00:09]} 3. exd5 {[%emt 0:00:38]} Nxd5 {[%emt 0:01:57]} 4. Bc4 {[%emt 0:02:06]} Nxc3 {[%emt 0:02:08]} 5. bxc3 {[%emt 0:00:14]} e6 {[%emt 0:00:27]} 6. Nf3 {[%emt 0:00:08]} Be7 {[%emt 0:00:33]} 7. d4 {[%emt 0:00:40]} O-O {[%emt 0:01:11]} 8. O-O {[%emt 0:01:13]} b6 {[%emt 0:01:36]} 9. Qe2 {[%emt 0:00:17]} Bb7 {[%emt 0:01:33]} 10. Bd3 {[%emt 0:00:15]} Qd5 {[%emt 0:01:54]} 11. c4 {[%emt 0:00:43]} Qh5 {[%emt 0:01:16]} 12. Be4 {[%emt 0:00:07]} Bxe4 {[%emt 0:02:20]} 13. Qxe4 {[%emt 0:00:07]} Na6 {[%emt 0:01:06]} 14. Bf4 {[%emt 0:02:13]} Qf5 {[%emt 0:03:21]} 15. Qxf5 {[%emt 0:06:02]} exf5 {[%emt 0:00:04]} 16. Rfe1 {[%emt 0:00:08]} Bb4 {[%emt 0:02:29]} 17. Re5 {[%emt 0:05:52]} g6 {[%emt 0:00:58]} 18. Bh6 {[%emt 0:00:36]} Rfe8 {[%emt 0:00:33]} 19. Rd1 {[%emt 0:06:19]} f6 {[%emt 0:01:33]} 20. Re3 {[%emt 0:01:14]} Kf7 {[%emt 0:02:51]} 21. h4 {[%emt 0:01:58]} Re4 {[%emt 0:03:43]} 22. Rxe4 {[%emt 0:05:42]} fxe4 {[%emt 0:00:06]} 23. Nd2 {[%emt 0:00:05]} Re8 {[%emt 0:02:41]} 24. Nf1 {[%emt 0:03:17]} Bd6 {[%emt 0:15:31]} 25. Bd2 {[%emt 0:09:07]} Nb8 {[%emt 0:01:48]} 26. c3 {[%emt 0:03:44]} Nd7 {[%emt 0:00:57]} 27. Ne3 {[%emt 0:01:01]} c6 {[%emt 0:05:26]} 28. Bc1 {[%emt 0:01:39]} Bb8 {[%emt 0:03:17]} 29. Nc2 {[%emt 0:06:57]} a5 {[%emt 0:01:11]} 30. a4 {[%emt 0:02:17]} f5 {[%emt 0:01:50]} 31. Ba3 {[%emt 0:04:13]} Rd8 {[%emt 0:01:37]} 32. Rb1 {[%emt 0:01:03]} f4 {[%emt 0:01:36]} 33. Re1 {[%emt 0:02:36]} Re8 {[%emt 0:01:21]} 34. Na1 {[%emt 0:02:46]} h6 {[%emt 0:02:08]} 35. Nb3 {[%emt 0:03:38]} g5 {[%emt 0:00:37]} 36. hxg5 {[%emt 0:04:35]} hxg5 {[%emt 0:00:06]} 37. c5 {[%emt 0:00:04]} Bc7 {[%emt 0:00:31]} 38. cxb6 {[%emt 0:00:40]} Nxb6 {[%emt 0:00:50]} 39. Nxa5 {[%emt 0:11:20]} Nxa4 {[%emt 0:00:14]} 40. Nxc6 {[%emt 0:00:06]} Nxc3 {[%emt 0:00:05]} 41. Bb2 {[%emt 0:00:08]} Nd5 {[%emt 0:00:27]} 42. Ne5+ {[%emt 0:01:11]} Bxe5 {[%emt 0:00:59]} 43. dxe5 {[%emt 0:00:07]} e3 {[%emt 0:00:15]} 44. fxe3 {[%emt 0:00:35]} Nxe3 {[%emt 0:00:19]} 45. g3 {[%emt 0:01:40]} Nc4 {[%emt 0:00:38]} 46. Bc3 {[%emt 0:00:13]} fxg3 {[%emt 0:01:27]} 47. Kg2 {[%emt 0:00:28]} Ke6 {[%emt 0:00:18]} 48. Kxg3 {[%emt 0:00:37]} Kd5 {[%emt 0:00:17]} 49. Rd1+ {[%emt 0:00:21]} Ke6 {[%emt 0:00:06]} 50. Ra1 {[%emt 0:00:24]} Kf5 {[%emt 0:01:07]} 51. Rf1+ {[%emt 0:01:18]} Ke4 {[%emt 0:00:31]} 52. Re1+ {[%emt 0:01:01]} Kf5 {[%emt 0:00:04]} 53. e6 {[%emt 0:01:39]} Rxe6 {[%emt 0:00:25]} 54. Rxe6 {[%emt 0:00:06]} Kxe6 {[%emt 0:00:02]} 55. Kg4 {[%emt 0:00:05]} 1/2-1/2

[Event "Paracin Open 2020"]
[Site "Paracin"]
[Date "2020.07.08"]
[Round "7.12"]
[White "Tirelli, Mauro"]
[Black "Ivanovic, Marko"]
[Result "0-1"]
[ECO "A05"]
[WhiteElo "2187"]
[BlackElo "2267"]
[Annotator "ChessBase"]
[PlyCount "48"]
[EventDate "2020.07.03"]
[EventType "swiss"]
[EventCountry "SRB"]
[SourceTitle "playchess.com"]
[Source "ChessBase"]
[SourceQuality "1"]
[TimeControl "5400+30"]

1. Nf3 {[%emt 0:00:00]} Nf6 {[%emt 0:00:32]} 2. g3 {[%emt 0:00:33]} c5 {[%emt 0:00:20]} 3. Bg2 {[%emt 0:00:35]} Nc6 {[%emt 0:00:06]} 4. O-O {[%emt 0:00:44]} g6 {[%emt 0:00:05]} 5. c4 {[%emt 0:01:40]} d6 {[%emt 0:00:26]} 6. Nc3 {[%emt 0:00:48]} Bg7 {[%emt 0:00:06]} 7. a3 {[%emt 0:05:49]} Be6 {[%emt 0:08:44]} 8. d3 {[%emt 0:01:38]} Qc8 {[%emt 0:00:05]} 9. Re1 {[%emt 0:04:41]} Bh3 {[%emt 0:00:23]} 10. Bh1 {[%emt 0:00:11]} h5 {[%emt 0:00:16]} 11. Bg5 {[%emt 0:06:01]} Ng4 {[%emt 0:04:57]} 12. Rb1 {[%emt 0:11:57]} h4 {[%emt 0:21:59]} 13. Nd5 {[%emt 0:05:35]} hxg3 {[%emt 0:06:06]} 14. hxg3 {[%emt 0:03:18]} Nge5 {[%emt 0:03:46]} 15. b4 {[%emt 0:12:31]} Qf5 {[%emt 0:04:14]} 16. Qd2 {[%emt 0:17:18]} f6 {[%emt 0:19:04]} 17. Nxe5 {[%emt 0:11:58]} Nxe5 {[%emt 0:02:11]} 18. Be4 {[%emt 0:01:40]} Qg4 {[%emt 0:07:18]} 19. bxc5 {[%emt 0:03:19]} fxg5 {[%emt 0:01:13]} 20. Rxb7 {[%emt 0:00:59]} Qh5 {[%emt 0:00:46]} 21. Rxe7+ {[%emt 0:04:32]} Kf8 {[%emt 0:00:05]} 22. Rb1 {[%emt 0:03:29]} Bf5 {[%emt 0:00:34]} 23. Bg2 {[%emt 0:01:26]} Qh2+ {[%emt 0:00:09]} 24. Kf1 {[%emt 0:00:02]} Bh3 {[%emt 0:00:19]} 0-1